[Event "Titled Tuesday Blitz April 11 Early 2023"]
[White "Kosteniuk, Alexandra"]
[Black "Terry, Renato"]
[WhiteFideId "4128125"]
[BlackFideId "3803457"]
[WhiteElo "2453"]
[BlackElo "2575"]
[Result "0-1"]
[Round "05"]
[TimeControl "180+2"]
[Date "2023.04.11"]
[WhiteClock "0:00:07"]
[BlackClock "0:00:06"]

1. e4 {[%clk 0:03:00]}  e6 {[%clk 0:02:57]} 2. d4 {[%clk 0:02:58]}  d5 {[%clk 0:02:57]} 3. Nc3 {[%clk 0:02:58]}  Nf6 {[%clk 0:02:57]} 4. e5 {[%clk 0:02:58]}  Nfd7 {[%clk 0:02:57]} 5. f4 {[%clk 0:02:58]}  c5 {[%clk 0:02:57]} 6. Nf3 {[%clk 0:02:58]}  Nc6 {[%clk 0:02:58]} 7. Ne2 {[%clk 0:02:58]}  Rb8 {[%clk 0:02:57]} 8. c3 {[%clk 0:02:54]}  b5 {[%clk 0:02:57]} 9. a3 {[%clk 0:02:52]}  b4 {[%clk 0:02:55]} 10. axb4 {[%clk 0:02:50]}  cxb4 {[%clk 0:02:53]} 11. g3 {[%clk 0:02:49]}  a5 {[%clk 0:02:51]} 12. Bg2 {[%clk 0:02:46]}  Ba6 {[%clk 0:02:51]} 13. O-O {[%clk 0:02:46]}  Be7 {[%clk 0:02:44]} 14. Rf2 {[%clk 0:02:33]}  O-O {[%clk 0:02:43]} 15. Qc2 {[%clk 0:02:25]}  f5 {[%clk 0:02:38]} 16. exf6 {[%clk 0:02:19]}  Bxf6 {[%clk 0:02:25]} 17. Bh3 {[%clk 0:02:12]}  Qe7 {[%clk 0:02:18]} 18. g4 {[%clk 0:02:00]}  g6 {[%clk 0:02:15]} 19. Ng3 {[%clk 0:01:56]}  Qd6 {[%clk 0:01:59]} 20. Bd2 {[%clk 0:01:52]}  Nb6 {[%clk 0:01:40]} 21. Re1 {[%clk 0:01:44]}  Rbe8 {[%clk 0:01:40]} 22. g5 {[%clk 0:01:27]}  Bg7 {[%clk 0:01:38]} 23. Bg4 {[%clk 0:01:27]}  bxc3 {[%clk 0:01:30]} 24. bxc3 {[%clk 0:01:25]}  a4 {[%clk 0:01:26]} 25. Bc1 {[%clk 0:01:25]}  Bc4 {[%clk 0:01:13]} 26. Qb2 {[%clk 0:00:46]}  Na8 {[%clk 0:01:02]} 27. Qa1 {[%clk 0:00:43]}  Nb6 {[%clk 0:00:49]} 28. Ba3 {[%clk 0:00:35]}  Qxf4 {[%clk 0:00:50]} 29. Bxe6+ {[%clk 0:00:35]}  Kh8 {[%clk 0:00:45]} 30. Bxf8 {[%clk 0:00:34]}  Rxf8 {[%clk 0:00:46]} 31. Qb2 {[%clk 0:00:28]}  Bb3 {[%clk 0:00:40]} 32. Ref1 {[%clk 0:00:22]}  Qe3 {[%clk 0:00:36]} 33. Re1 {[%clk 0:00:18]}  Qf4 {[%clk 0:00:35]} 34. Rff1 {[%clk 0:00:16]}  Qd6 {[%clk 0:00:27]} 35. Bh3 {[%clk 0:00:12]}  Nc4 {[%clk 0:00:25]} 36. Qa1 {[%clk 0:00:12]}  a3 {[%clk 0:00:20]} 37. Rf2 {[%clk 0:00:13]}  a2 {[%clk 0:00:20]} 38. Bg2 {[%clk 0:00:11]}  Qd8 {[%clk 0:00:19]} 39. Rxa2 {[%clk 0:00:11]}  Bxa2 {[%clk 0:00:19]} 40. Qxa2 {[%clk 0:00:12]}  Qb6 {[%clk 0:00:08]} 41. Kh1 {[%clk 0:00:10]}  Qb5 {[%clk 0:00:07]} 42. Qe2 {[%clk 0:00:10]}  Qb3 {[%clk 0:00:07]} 43. Qd3 {[%clk 0:00:05]}  Nb2 {[%clk 0:00:07]} 44. Qd2 {[%clk 0:00:05]}  Nc4 {[%clk 0:00:07]} 45. Qd3 {[%clk 0:00:06]}  Qb2 {[%clk 0:00:08]} 46. h4 {[%clk 0:00:05]}  Qf2 {[%clk 0:00:08]} 47. Kh2 {[%clk 0:00:04]}  Nb2 {[%clk 0:00:07]} 48. Qe2 {[%clk 0:00:04]}  Qxe2 {[%clk 0:00:07]} 49. Rxe2 {[%clk 0:00:05]}  Na4 {[%clk 0:00:08]} 50. h5 {[%clk 0:00:05]}  gxh5 {[%clk 0:00:07]} 51. Re6 {[%clk 0:00:04]}  Nd8 {[%clk 0:00:06]} 52. Re3 {[%clk 0:00:05]}  h6 {[%clk 0:00:02]} 53. Nxh5 {[%clk 0:00:04]}  hxg5 {[%clk 0:00:02]} 54. Nxg7 {[%clk 0:00:04]}  Kxg7 {[%clk 0:00:03]} 55. Nxg5 {[%clk 0:00:05]}  Rf5 {[%clk 0:00:04]} 56. Nh3 {[%clk 0:00:04]}  Nc6 {[%clk 0:00:04]} 57. Rg3+ {[%clk 0:00:03]}  Kf6 {[%clk 0:00:04]} 58. Kg1 {[%clk 0:00:03]}  Na7 {[%clk 0:00:04]} 59. Nf2 {[%clk 0:00:03]}  Nb5 {[%clk 0:00:05]} 60. Ng4+ {[%clk 0:00:03]}  Ke7 {[%clk 0:00:05]} 61. Ne3 {[%clk 0:00:04]}  Rf8 {[%clk 0:00:02]} 62. Nxd5+ {[%clk 0:00:05]}  Kd6 {[%clk 0:00:03]} 63. c4 {[%clk 0:00:04]}  Nxd4 {[%clk 0:00:02]} 64. Ra3 {[%clk 0:00:04]}  Nc5 {[%clk 0:00:02]} 65. Re3 {[%clk 0:00:04]}  Nf5 {[%clk 0:00:02]} 66. Rf3 {[%clk 0:00:04]}  Rf7 {[%clk 0:00:02]} 67. Ne3 {[%clk 0:00:03]}  Nh6 {[%clk 0:00:02]} 68. Rh3 {[%clk 0:00:03]}  Ng8 {[%clk 0:00:02]} 69. Rh8 {[%clk 0:00:03]}  Nf6 {[%clk 0:00:02]} 70. Rh6 {[%clk 0:00:03]}  Ke5 {[%clk 0:00:02]} 71. Nd5 {[%clk 0:00:04]}  Nxd5 {[%clk 0:00:02]} 72. Bxd5 {[%clk 0:00:05]}  Rg7+ {[%clk 0:00:02]} 73. Kf2 {[%clk 0:00:05]}  Kd4 {[%clk 0:00:03]} 74. Rh4+ {[%clk 0:00:05]}  Kc3 {[%clk 0:00:03]} 75. Rh5 {[%clk 0:00:06]}  Kd2 {[%clk 0:00:03]} 76. Rf5 {[%clk 0:00:05]}  Nd3+ {[%clk 0:00:03]} 77. Kf3 {[%clk 0:00:05]}  Re7 {[%clk 0:00:04]} 78. Rf7 {[%clk 0:00:05]}  Ne5+ {[%clk 0:00:03]} 79. Kf4 {[%clk 0:00:04]}  Nxf7 {[%clk 0:00:04]} 80. Bxf7 {[%clk 0:00:04]}  Rxf7+ {[%clk 0:00:05]} 81. Ke5 {[%clk 0:00:05]}  Kc3 {[%clk 0:00:05]} 82. c5 {[%clk 0:00:06]}  Kb4 {[%clk 0:00:05]} 83. Kd6 {[%clk 0:00:07]}  Kb5 {[%clk 0:00:06]} 84. c6 {[%clk 0:00:07]}  Rf6+ {[%clk 0:00:06]} 0-1


[Site "https://www.chess.com"]

[Event "Titled Tuesday Blitz April 11 Early 2023"]
[White "Gholami Orimi, Mahdi"]
[Black "Iskusnyh, Sergei"]
[WhiteFideId "12558486"]
[BlackFideId "4120027"]
[WhiteElo "2363"]
[BlackElo "2492"]
[Result "1-0"]
[Round "05"]
[TimeControl "180+2"]
[Date "2023.04.11"]
[WhiteClock "0:00:16"]
[BlackClock "0:00:02"]

1. Nf3 {[%clk 0:02:44]}  d5 {[%clk 0:02:59]} 2. e3 {[%clk 0:02:42]}  Nf6 {[%clk 0:02:59]} 3. c4 {[%clk 0:02:40]}  c6 {[%clk 0:02:57]} 4. b3 {[%clk 0:02:40]}  Bg4 {[%clk 0:02:55]} 5. Bb2 {[%clk 0:02:39]}  e6 {[%clk 0:02:55]} 6. h3 {[%clk 0:02:32]}  Bh5 {[%clk 0:02:54]} 7. Be2 {[%clk 0:02:31]}  Nbd7 {[%clk 0:02:51]} 8. O-O {[%clk 0:02:30]}  Bd6 {[%clk 0:02:48]} 9. d4 {[%clk 0:02:30]}  O-O {[%clk 0:02:46]} 10. Ne5 {[%clk 0:02:30]}  Bxe2 {[%clk 0:02:43]} 11. Qxe2 {[%clk 0:02:31]}  Be7 {[%clk 0:02:30]} 12. Nd3 {[%clk 0:02:29]}  Ne4 {[%clk 0:02:16]} 13. Nd2 {[%clk 0:02:29]}  f5 {[%clk 0:02:12]} 14. Nf3 {[%clk 0:02:28]}  Bd6 {[%clk 0:02:10]} 15. Rfd1 {[%clk 0:02:24]}  Qf6 {[%clk 0:02:09]} 16. Nfe5 {[%clk 0:02:24]}  Qe7 {[%clk 0:01:58]} 17. Rac1 {[%clk 0:02:22]}  Nxe5 {[%clk 0:01:56]} 18. dxe5 {[%clk 0:02:22]}  Bc7 {[%clk 0:01:39]} 19. f3 {[%clk 0:02:22]}  Ng5 {[%clk 0:01:36]} 20. Bd4 {[%clk 0:02:22]}  Bb6 {[%clk 0:01:31]} 21. Qf2 {[%clk 0:02:14]}  Rfd8 {[%clk 0:01:08]} 22. c5 {[%clk 0:01:51]}  Bc7 {[%clk 0:01:07]} 23. b4 {[%clk 0:01:52]}  a5 {[%clk 0:01:05]} 24. a3 {[%clk 0:01:49]}  axb4 {[%clk 0:01:04]} 25. axb4 {[%clk 0:01:50]}  Ra3 {[%clk 0:01:04]} 26. b5 {[%clk 0:01:49]}  Rda8 {[%clk 0:01:00]} 27. b6 {[%clk 0:01:42]}  Bd8 {[%clk 0:00:58]} 28. Ra1 {[%clk 0:01:41]}  Qe8 {[%clk 0:00:42]} 29. Rxa3 {[%clk 0:01:29]}  Rxa3 {[%clk 0:00:42]} 30. Qb2 {[%clk 0:01:29]}  Ra8 {[%clk 0:00:41]} 31. Ra1 {[%clk 0:01:29]}  Rxa1+ {[%clk 0:00:30]} 32. Qxa1 {[%clk 0:01:30]}  Qd7 {[%clk 0:00:27]} 33. Qa8 {[%clk 0:01:25]}  h6 {[%clk 0:00:25]} 34. Nc1 {[%clk 0:01:24]}  Kh7 {[%clk 0:00:21]} 35. Nb3 {[%clk 0:01:24]}  Qe8 {[%clk 0:00:17]} 36. h4 {[%clk 0:00:51]}  Nxf3+ {[%clk 0:00:16]} 37. gxf3 {[%clk 0:00:52]}  Qg6+ {[%clk 0:00:16]} 38. Kf1 {[%clk 0:00:51]}  Bxh4 {[%clk 0:00:15]} 39. Nd2 {[%clk 0:00:45]}  f4 {[%clk 0:00:14]} 40. Ke2 {[%clk 0:00:41]}  Qg2+ {[%clk 0:00:12]} 41. Kd3 {[%clk 0:00:41]}  Be1 {[%clk 0:00:10]} 42. Qa2 {[%clk 0:00:35]}  h5 {[%clk 0:00:10]} 43. Bc3 {[%clk 0:00:18]}  fxe3 {[%clk 0:00:08]} 44. Kxe3 {[%clk 0:00:17]}  h4 {[%clk 0:00:08]} 45. Qb1+ {[%clk 0:00:17]}  Kg8 {[%clk 0:00:04]} 46. Qxe1 {[%clk 0:00:17]}  h3 {[%clk 0:00:05]} 47. Nf1 {[%clk 0:00:18]}  Qg5+ {[%clk 0:00:04]} 48. f4 {[%clk 0:00:17]}  Qg6 {[%clk 0:00:03]} 49. Qg3 {[%clk 0:00:16]}  Qe4+ {[%clk 0:00:03]} 50. Kd2 {[%clk 0:00:16]}  Qg2+ {[%clk 0:00:02]} 51. Ke1 {[%clk 0:00:15]}  Qe4+ {[%clk 0:00:02]} 52. Qe3 {[%clk 0:00:16]} 1-0


[Site "https://www.chess.com"]

[Event "Titled Tuesday Blitz April 11 Early 2023"]
[White "Kravtsiv, Martyn"]
[Black "polandchessplayer"]
[WhiteFideId "14113147"]
[WhiteElo "2695"]
[BlackElo "2659"]
[Result "1-0"]
[Round "05"]
[TimeControl "180+2"]
[Date "2023.04.11"]
[WhiteClock "0:01:50"]
[BlackClock "0:01:06"]

1. e4 {[%clk 0:03:00]}  c6 {[%clk 0:03:00]} 2. Nf3 {[%clk 0:03:00]}  d5 {[%clk 0:03:01]} 3. d3 {[%clk 0:03:00]}  e6 {[%clk 0:03:00]} 4. Be2 {[%clk 0:02:47]}  Nd7 {[%clk 0:03:00]} 5. O-O {[%clk 0:02:45]}  g6 {[%clk 0:03:00]} 6. e5 {[%clk 0:02:44]}  Bg7 {[%clk 0:03:00]} 7. d4 {[%clk 0:02:44]}  Ne7 {[%clk 0:03:00]} 8. c3 {[%clk 0:02:40]}  O-O {[%clk 0:02:56]} 9. Re1 {[%clk 0:02:41]}  c5 {[%clk 0:02:55]} 10. Na3 {[%clk 0:02:39]}  a6 {[%clk 0:02:54]} 11. Nc2 {[%clk 0:02:39]}  b5 {[%clk 0:02:50]} 12. Bg5 {[%clk 0:02:35]}  h6 {[%clk 0:02:49]} 13. Bf4 {[%clk 0:02:28]}  Bb7 {[%clk 0:02:42]} 14. h4 {[%clk 0:02:27]}  Nf5 {[%clk 0:02:38]} 15. g3 {[%clk 0:02:27]}  f6 {[%clk 0:02:11]} 16. Bd3 {[%clk 0:02:20]}  g5 {[%clk 0:01:59]} 17. Bxf5 {[%clk 0:02:18]}  exf5 {[%clk 0:01:59]} 18. exf6 {[%clk 0:02:17]}  Bxf6 {[%clk 0:01:56]} 19. hxg5 {[%clk 0:02:15]}  hxg5 {[%clk 0:01:57]} 20. Bd6 {[%clk 0:02:16]}  Rf7 {[%clk 0:01:51]} 21. dxc5 {[%clk 0:02:12]}  g4 {[%clk 0:01:49]} 22. Nfd4 {[%clk 0:02:12]}  Bh8 {[%clk 0:01:32]} 23. c6 {[%clk 0:02:05]}  Bxc6 {[%clk 0:01:30]} 24. Nxc6 {[%clk 0:02:06]}  Qf6 {[%clk 0:01:25]} 25. Qxd5 {[%clk 0:02:05]}  Nb6 {[%clk 0:01:22]} 26. Ne7+ {[%clk 0:01:58]}  Kh7 {[%clk 0:01:08]} 27. Qh1+ {[%clk 0:01:56]}  Qh6 {[%clk 0:01:08]} 28. Qxh6+ {[%clk 0:01:54]}  Kxh6 {[%clk 0:01:09]} 29. Re6+ {[%clk 0:01:53]}  Kh7 {[%clk 0:01:09]} 30. Ne3 {[%clk 0:01:51]}  Rd8 {[%clk 0:01:06]} 31. N3xf5 {[%clk 0:01:50]} 1-0


[Site "https://www.chess.com"]

[Event "Titled Tuesday Blitz April 11 Early 2023"]
[White "Belozerov, Andrei"]
[Black "Pranesh M"]
[WhiteFideId "4120213"]
[BlackFideId "35028600"]
[WhiteElo "2373"]
[BlackElo "2437"]
[Result "0-1"]
[Round "05"]
[TimeControl "180+2"]
[Date "2023.04.11"]
[WhiteClock "0:00:04"]
[BlackClock "0:01:10"]

1. e4 {[%clk 0:02:59]}  e5 {[%clk 0:03:00]} 2. Nf3 {[%clk 0:02:59]}  Nc6 {[%clk 0:03:00]} 3. Bb5 {[%clk 0:02:59]}  a6 {[%clk 0:03:00]} 4. Ba4 {[%clk 0:02:59]}  Nf6 {[%clk 0:03:00]} 5. O-O {[%clk 0:03:00]}  Bc5 {[%clk 0:03:00]} 6. c3 {[%clk 0:02:59]}  O-O {[%clk 0:03:01]} 7. d4 {[%clk 0:02:57]}  Ba7 {[%clk 0:03:01]} 8. dxe5 {[%clk 0:02:54]}  Nxe4 {[%clk 0:03:01]} 9. Qd5 {[%clk 0:02:53]}  Nc5 {[%clk 0:03:00]} 10. Bc2 {[%clk 0:02:53]}  d6 {[%clk 0:03:00]} 11. exd6 {[%clk 0:02:53]}  Qxd6 {[%clk 0:02:55]} 12. Qxd6 {[%clk 0:02:52]}  cxd6 {[%clk 0:02:56]} 13. Bf4 {[%clk 0:02:49]}  Rd8 {[%clk 0:02:53]} 14. Nbd2 {[%clk 0:02:27]}  h6 {[%clk 0:02:42]} 15. Nb3 {[%clk 0:02:19]}  Na4 {[%clk 0:02:26]} 16. Rab1 {[%clk 0:02:15]}  Be6 {[%clk 0:02:25]} 17. Nbd4 {[%clk 0:02:10]}  Nxd4 {[%clk 0:02:22]} 18. Nxd4 {[%clk 0:02:08]}  Bxd4 {[%clk 0:02:21]} 19. Bxa4 {[%clk 0:02:02]}  Be5 {[%clk 0:02:21]} 20. Bxe5 {[%clk 0:01:21]}  dxe5 {[%clk 0:02:22]} 21. Rfe1 {[%clk 0:01:18]}  f6 {[%clk 0:02:15]} 22. Bb3 {[%clk 0:00:54]}  Bxb3 {[%clk 0:02:15]} 23. axb3 {[%clk 0:00:55]}  Rd2 {[%clk 0:02:15]} 24. Kf1 {[%clk 0:00:55]}  Rad8 {[%clk 0:02:13]} 25. Re2 {[%clk 0:00:55]}  Kf7 {[%clk 0:01:54]} 26. Ke1 {[%clk 0:00:52]}  R2d6 {[%clk 0:01:52]} 27. b4 {[%clk 0:00:51]}  Ke6 {[%clk 0:01:51]} 28. Ra1 {[%clk 0:00:49]}  Kd5 {[%clk 0:01:49]} 29. b3 {[%clk 0:00:33]}  Ke6 {[%clk 0:01:47]} 30. f3 {[%clk 0:00:29]}  Rd3 {[%clk 0:01:46]} 31. Rc2 {[%clk 0:00:29]}  Re3+ {[%clk 0:01:43]} 32. Kf2 {[%clk 0:00:28]}  Rdd3 {[%clk 0:01:43]} 33. Rac1 {[%clk 0:00:28]}  f5 {[%clk 0:01:43]} 34. b5 {[%clk 0:00:16]}  axb5 {[%clk 0:01:43]} 35. b4 {[%clk 0:00:16]}  f4 {[%clk 0:01:40]} 36. c4 {[%clk 0:00:16]}  bxc4 {[%clk 0:01:41]} 37. Rxc4 {[%clk 0:00:16]}  Rd2+ {[%clk 0:01:42]} 38. Kf1 {[%clk 0:00:16]}  Ree2 {[%clk 0:01:42]} 39. Rc7 {[%clk 0:00:14]}  Rf2+ {[%clk 0:01:43]} 40. Ke1 {[%clk 0:00:13]}  Rxg2 {[%clk 0:01:41]} 41. Rxb7 {[%clk 0:00:12]}  Ra2 {[%clk 0:01:32]} 42. Rc6+ {[%clk 0:00:12]}  Kd5 {[%clk 0:01:31]} 43. Rc5+ {[%clk 0:00:12]}  Kd6 {[%clk 0:01:30]} 44. Rb6+ {[%clk 0:00:11]}  Kd7 {[%clk 0:01:30]} 45. Rb7+ {[%clk 0:00:11]}  Ke6 {[%clk 0:01:31]} 46. Rc6+ {[%clk 0:00:11]}  Kd5 {[%clk 0:01:20]} 47. Rc5+ {[%clk 0:00:11]}  Kd6 {[%clk 0:01:20]} 48. Rb6+ {[%clk 0:00:10]}  Ke7 {[%clk 0:01:21]} 49. Rxe5+ {[%clk 0:00:07]}  Kf7 {[%clk 0:01:18]} 50. Kf1 {[%clk 0:00:07]}  Rxh2 {[%clk 0:01:15]} 51. Rf5+ {[%clk 0:00:06]}  Kg8 {[%clk 0:01:15]} 52. Kg1 {[%clk 0:00:05]}  Rhg2+ {[%clk 0:01:13]} 53. Kf1 {[%clk 0:00:05]}  Raf2+ {[%clk 0:01:10]} 54. Ke1 {[%clk 0:00:05]}  Rxf3 {[%clk 0:01:11]} 55. Rb8+ {[%clk 0:00:05]}  Kh7 {[%clk 0:01:11]} 56. Rff8 {[%clk 0:00:06]}  Rb3 {[%clk 0:01:10]} 57. Rh8+ {[%clk 0:00:04]}  Kg6 {[%clk 0:01:10]} 58. Rb6+ {[%clk 0:00:05]}  Kh5 {[%clk 0:01:11]} 59. Rf8 {[%clk 0:00:04]}  Rb1# {[%clk 0:01:10]} 0-1


[Site "https://www.chess.com"]

[Event "Titled Tuesday Blitz April 11 Early 2023"]
[White "Svane, Frederik"]
[Black "Megalios, Konstantinos"]
[WhiteFideId "12923044"]
[BlackFideId "4238044"]
[WhiteElo "2502"]
[BlackElo "2277"]
[Result "1-0"]
[Round "05"]
[TimeControl "180+2"]
[Date "2023.04.11"]
[WhiteClock "0:01:43"]
[BlackClock "0:00:02"]

1. g3 {[%clk 0:03:00]}  d5 {[%clk 0:02:56]} 2. Nf3 {[%clk 0:03:00]}  c6 {[%clk 0:02:56]} 3. c4 {[%clk 0:02:59]}  Nf6 {[%clk 0:02:57]} 4. Bg2 {[%clk 0:02:59]}  dxc4 {[%clk 0:02:54]} 5. Na3 {[%clk 0:02:59]}  Be6 {[%clk 0:02:48]} 6. O-O {[%clk 0:02:54]}  g6 {[%clk 0:02:33]} 7. Ng5 {[%clk 0:02:50]}  Bd5 {[%clk 0:02:20]} 8. e4 {[%clk 0:02:50]}  h6 {[%clk 0:02:20]} 9. exd5 {[%clk 0:02:47]}  hxg5 {[%clk 0:02:19]} 10. dxc6 {[%clk 0:02:47]}  Nxc6 {[%clk 0:02:20]} 11. Nxc4 {[%clk 0:02:47]}  Bg7 {[%clk 0:01:39]} 12. d4 {[%clk 0:02:39]}  Nxd4 {[%clk 0:01:37]} 13. Be3 {[%clk 0:02:36]}  Nc6 {[%clk 0:01:12]} 14. Qb3 {[%clk 0:02:35]}  Qc7 {[%clk 0:01:00]} 15. Bxg5 {[%clk 0:02:35]}  Rc8 {[%clk 0:00:52]} 16. Bf4 {[%clk 0:02:30]}  Nd4 {[%clk 0:00:34]} 17. Bxc7 {[%clk 0:02:20]}  Nxb3 {[%clk 0:00:33]} 18. axb3 {[%clk 0:02:20]}  Rxc7 {[%clk 0:00:33]} 19. Rxa7 {[%clk 0:02:21]}  O-O {[%clk 0:00:20]} 20. Rxb7 {[%clk 0:02:18]}  Rxb7 {[%clk 0:00:19]} 21. Bxb7 {[%clk 0:02:19]}  Rb8 {[%clk 0:00:20]} 22. Na5 {[%clk 0:02:18]}  Ne8 {[%clk 0:00:20]} 23. Rc1 {[%clk 0:02:07]}  Nd6 {[%clk 0:00:11]} 24. Bc6 {[%clk 0:02:03]}  Bxb2 {[%clk 0:00:11]} 25. Rc2 {[%clk 0:02:03]}  Bd4 {[%clk 0:00:10]} 26. Kg2 {[%clk 0:01:58]}  Kg7 {[%clk 0:00:09]} 27. Ba4 {[%clk 0:01:55]}  Bf6 {[%clk 0:00:05]} 28. Nc6 {[%clk 0:01:55]}  Rc8 {[%clk 0:00:04]} 29. b4 {[%clk 0:01:54]}  Rc7 {[%clk 0:00:02]} 30. b5 {[%clk 0:01:53]}  Nc8 {[%clk 0:00:03]} 31. Nb4 {[%clk 0:01:44]}  Rxc2 {[%clk 0:00:02]} 32. Bxc2 {[%clk 0:01:45]}  Bc3 {[%clk 0:00:01]} 33. Nd5 {[%clk 0:01:45]}  Bd4 {[%clk 0:00:01]} 34. f4 {[%clk 0:01:42]}  e6 {[%clk 0:00:02]} 35. Nb4 {[%clk 0:01:43]} 1-0


[Site "https://www.chess.com"]

[Event "Titled Tuesday Blitz April 11 Early 2023"]
[White "Zarubitski, Viachaslau"]
[Black "Gharibyan, Mamikon"]
[WhiteFideId "13509373"]
[BlackFideId "13308300"]
[WhiteElo "2284"]
[BlackElo "2445"]
[Result "1-0"]
[Round "05"]
[TimeControl "180+2"]
[Date "2023.04.11"]
[WhiteClock "0:00:02"]
[BlackClock "0:00:01"]

1. c4 {[%clk 0:02:56]}  e5 {[%clk 0:02:56]} 2. g3 {[%clk 0:02:54]}  c6 {[%clk 0:02:51]} 3. d4 {[%clk 0:02:45]}  e4 {[%clk 0:02:48]} 4. Nc3 {[%clk 0:02:38]}  d5 {[%clk 0:02:33]} 5. Nh3 {[%clk 0:02:32]}  Bb4 {[%clk 0:02:16]} 6. Qb3 {[%clk 0:02:19]}  a5 {[%clk 0:02:13]} 7. cxd5 {[%clk 0:01:59]}  cxd5 {[%clk 0:01:57]} 8. Bg5 {[%clk 0:01:56]}  f6 {[%clk 0:01:48]} 9. Bd2 {[%clk 0:01:55]}  Ne7 {[%clk 0:01:47]} 10. Nf4 {[%clk 0:01:53]}  Bxc3 {[%clk 0:01:45]} 11. bxc3 {[%clk 0:01:42]}  Nbc6 {[%clk 0:01:44]} 12. e3 {[%clk 0:01:37]}  a4 {[%clk 0:01:38]} 13. Qb1 {[%clk 0:01:26]}  Na5 {[%clk 0:01:34]} 14. c4 {[%clk 0:01:20]}  Nxc4 {[%clk 0:01:33]} 15. Bxc4 {[%clk 0:01:14]}  dxc4 {[%clk 0:01:34]} 16. Qb5+ {[%clk 0:01:13]}  Qd7 {[%clk 0:01:04]} 17. Qxc4 {[%clk 0:01:12]}  Qc6 {[%clk 0:00:52]} 18. Qe2 {[%clk 0:00:55]}  O-O {[%clk 0:00:47]} 19. O-O {[%clk 0:00:53]}  g5 {[%clk 0:00:25]} 20. Rfc1 {[%clk 0:00:53]}  Qe8 {[%clk 0:00:21]} 21. Qc4+ {[%clk 0:00:47]}  Qf7 {[%clk 0:00:20]} 22. Ne2 {[%clk 0:00:44]}  Be6 {[%clk 0:00:19]} 23. Qb5 {[%clk 0:00:41]}  Nd5 {[%clk 0:00:17]} 24. Rab1 {[%clk 0:00:34]}  Rfc8 {[%clk 0:00:12]} 25. Qxb7 {[%clk 0:00:30]}  Rxc1+ {[%clk 0:00:12]} 26. Nxc1 {[%clk 0:00:29]}  Rc8 {[%clk 0:00:12]} 27. Qxf7+ {[%clk 0:00:14]}  Kxf7 {[%clk 0:00:12]} 28. Kf1 {[%clk 0:00:12]}  Rc2 {[%clk 0:00:10]} 29. Ke1 {[%clk 0:00:13]}  a3 {[%clk 0:00:10]} 30. Rb3 {[%clk 0:00:11]}  Nf4 {[%clk 0:00:03]} 31. Rxa3 {[%clk 0:00:10]}  Ng2+ {[%clk 0:00:02]} 32. Kd1 {[%clk 0:00:11]}  Rb2 {[%clk 0:00:03]} 33. Ne2 {[%clk 0:00:02]}  Bg4 {[%clk 0:00:02]} 34. Ra7+ {[%clk 0:00:02]}  Kg6 {[%clk 0:00:02]} 35. d5 {[%clk 0:00:02]}  Rb1+ {[%clk 0:00:02]} 36. Kc2 {[%clk 0:00:02]}  Rf1 {[%clk 0:00:03]} 37. Nd4 {[%clk 0:00:01]}  Rxf2 {[%clk 0:00:04]} 38. Kc3 {[%clk 0:00:01]}  h5 {[%clk 0:00:03]} 39. d6 {[%clk 0:00:01]}  h4 {[%clk 0:00:03]} 40. d7 {[%clk 0:00:02]}  Bxd7 {[%clk 0:00:04]} 41. Rxd7 {[%clk 0:00:02]}  h3 {[%clk 0:00:05]} 42. Rd8 {[%clk 0:00:02]}  Nh4 {[%clk 0:00:01]} 43. gxh4 {[%clk 0:00:02]}  Rxh2 {[%clk 0:00:02]} 44. hxg5 {[%clk 0:00:02]}  fxg5 {[%clk 0:00:03]} 45. Rg8+ {[%clk 0:00:02]}  Kh5 {[%clk 0:00:02]} 46. Ne6 {[%clk 0:00:02]}  Rg2 {[%clk 0:00:02]} 47. a4 {[%clk 0:00:02]}  h2 {[%clk 0:00:02]} 48. a5 {[%clk 0:00:01]}  Kg4 {[%clk 0:00:03]} 49. Rh8 {[%clk 0:00:02]}  Kf5 {[%clk 0:00:02]} 50. a6 {[%clk 0:00:01]}  g4 {[%clk 0:00:01]} 51. a7 {[%clk 0:00:01]}  g3 {[%clk 0:00:01]} 52. a8=Q {[%clk 0:00:02]}  Rg1 {[%clk 0:00:02]} 53. Qf8+ {[%clk 0:00:02]}  Kg4 {[%clk 0:00:01]} 54. Qf4# {[%clk 0:00:02]} 1-0


[Site "https://www.chess.com"]